{"text_format":"2","workbook":"xlsx","n_sheets":3,"sheets":["Plan1","Plan2","Plan3"],"not_rendered":{"charts":0,"images":0,"macros":0,"external_links":0,"defined_names":0,"comments":0,"pivot_tables":0},"unopened":[],"bounds":{"document_bytes":16777216,"sheet_cells":100000,"run_cost":"one","rows_first":2000,"rows_last":500,"rows_between":2000,"halvings":0,"cell_chars":16384,"cell_head_chars":4096},"cells_cut":0,"cells_raw":0,"read":"whole","date_system":"1900"}

{"sheet":"Plan1","index":0,"n_rows":21,"n_cols":15,"rows_kept":21,"cut":false,"hidden":false,"merged":[[20,2,20,3],[9,0,13,0],[14,0,19,0],[6,0,8,0],[6,3,8,3]]}
["Universidade Federal de Alagoas"]
["Pró-Reitoria de Extensão"]
["Coordenação de Extensão"]
[]
["Programas e Projetos contemplados no Programa de Extensão Universitária - PROEXT 2013"]
[]
[null,null,null,"Coordenador(a)","Material ","Passagens/",null,"Serviços de ","Serviços de ","Auxílio ",null,"Equipamento e ","TOTAL ","TOTAL","VALOR "]
[null,"Nº",null,null,"de ","Despesas com ","Diárias","de Terceiros ","de Terceiros ","Financeiro à","Impostos","Material ","DE","DE ","TOTAL"]
[{"$nulls":4},"Consumo","locomoção",null,"Pessoa Física","Pessoa Jurídica","Estudantes",null,"Permanente","CUSTEIO","INVESTIMENTO"]
["Programas",1,"Formação de Incubadora de Empreendimentos Culturais e Artísticos - IncArte/UFAL - 2013 ","Prof. Msc. Sérgio Onofre Seixas de Araújo - UE Penedo","R$ 12.824,,00",6952,22833,35200,20700,8640,12672,29950,119821,29950,{"$f":"SUM(M10:N10)","v":149771}]
[null,2,"Ações interdisciplinares em Saúde visando à implementação da Farmácia Escola da UFAL","Profª. Drª. Camila Braga Dornelas  - ESENFAR/Farmácia",24000,2000,1714.26,0,24262,12960,0,22300,64936.26,22300,87236.260000000009]
[null,3,"Fortalecimento da agricultura familiar nos assenta","Prof. Dr. Cícero Luiz Calazans de Lima - CECA",39600,2500,39146.85,0,22600,25920,0,16850,129766.85,16850,146616.85]
[null,4,"Programa de Fortalecimento da Economia Solidária no Estado de Alagoas","Prof. Dr. Cezar Nonato Bezerra Candeias",6440.3,21300,47341.599999999999,10000,8000,36000,3600,17300,132681.9,17300,149981.9]
[null,5,"Programa de Apoio Didático-Pedagógico ao educador do Agreste e Sertão Alagoano (PRODPEAL) ","Profª. Msc. Maria Lusia de Morais Belo",28381.51,4360,13239.6,3600,11350,56160,1296,31611.9,118387.11,31611.9,149999.01]
["Projetos",6,"Histórias de leitura: uma pesquisa-ação em Massagueira","Profª. Drª. Claudia Pimentel",6950,1400,500,0,8400,28800,0,3750,46050,3750,49800]
[null,7,"Horto matriz de plantas aromáticas e medicinais da Ufal","Profª. Drª. Samia Andrícia Souza da Silva",44400,0,0,0,5600,0,0,0,50000,0,50000]
[null,8,"Crack e outras Drogas Psicoativas: a informação, no âmbito da toxicologia psicossocial, como estratégia para o 'enfrentamento'","Profª. Drª. Maria Aline Barros Fidelis de Moura",7000,7000,3999.94,5000,4000,12960,1800,8000,41759.94,8000,49759.94]
[null,9,"AGIR EM COMUNIDADE - Ação Social para a Formação de Agentes comunitários em Direitos Humanos","Prof. Dr. Adrualdo de LIma Catão",232.5,2490.5,320,0,1200,41160,0,4597,45403,4597,50000]
[null,10,"A Lei 10.639/03 nas comunidades remanescentes de quilombo de Alagoas","Profª. Drª. Clara Suassuna Fernandes",1401.7,0,0,0,0,0,0,23214,1401.7,23214,24615.7]
[null,11,"Culinária ribeirinha: alternativas para a inserção produtiva de mulheres no mercado gastronômico da foz do rio São Francisco\n","Prof. Msc. Rafael Denes Arruda",2023,2200,6372,0,15620,10800,0,12957,37015,12957,49972]
[null,null,"TOTAL (Programas e Projetos)",null,{"$f":"SUM(E11:E20)","v":160429.01},{"$f":"SUM(F10:F20)","v":50202.5},135467.25,53800,121732,233400,19368,170529.9,787222.76,170529.9,957752.65999999992]

{"sheet":"Plan2","index":1,"n_rows":0,"n_cols":0,"rows_kept":0,"cut":false,"hidden":false,"merged":[]}

{"sheet":"Plan3","index":2,"n_rows":0,"n_cols":0,"rows_kept":0,"cut":false,"hidden":false,"merged":[]}